Cogmind - Beta 13 --- EXPLORER MODE // 2024.04.07 @ 19:42:16 Player: devwitch Result: Self-destructed Performance ------------- Evolutions (5) 2500 Regions Visited (9) 1800 Robots Destroyed (31) 155 Value Destroyed (923) 923 Prototype IDs (0) 0 Alien Tech Used (0) 0 Bonus (0) 0 TOTAL SCORE: 5378 Bonus ------- None Cogmind --------- Core Integrity 960/1000 Matter 300/300 Energy 296/360 System Corruption 0% Temperature Hot (221) Movement Flying (23) Location -5/Upper Caves Parts ------- > --- POWER (2) -------- Light Angular Momentum Engine Fission Core > --- PROPULSION (6) --- Surge Thruster Surge Thruster Surge Thruster Surge Thruster Field Propulsion Drive Field Propulsion Drive > --- UTILITY (7) ------ Advanced Weight Redist. System Sensor Array Improved Signal Interpreter Power Shielding Hacking Suite System Restoration Module > --- WEAPON (3) ------- Improved EM Pulse Cannon > --- INVENTORY (5) ---- Deuterium Engine Advanced ECM Suite Peak State ------------ > --- POWER ------------ Light Angular Momentum Engine Fission Core > --- PROPULSION ------- Surge Thruster Surge Thruster Nuclear Pulse Thruster Field Propulsion Drive Field Propulsion Drive Field Propulsion Drive > --- UTILITY ---------- Advanced Weight Redist. System Sensor Array Improved Signal Interpreter Power Shielding Hacking Suite System Restoration Module > --- WEAPON ----------- Improved EM Pulse Cannon Datajack > --- INVENTORY -------- Deuterium Engine Surge Thruster Improved Signal Interpreter Advanced ECM Suite [Rating: 60] Favorites ----------- Power Light Ion Engine Engine Light Ion Engine Power Core Fission Core Propulsion Aluminum Leg Leg Aluminum Leg Flight Unit Surge Thruster Utility Sensor Array Device Sensor Array Storage Medium Storage Unit Processor Improved Signal Interpreter Hackware Hacking Suite Protection Power Shielding Weapon Assault Rifle Energy Gun Medium Laser Energy Cannon Improved EM Pulse Cannon Ballistic Gun Assault Rifle Special Melee Weapon Datajack Build | -11 -10 -10 -9 -9 -8 -7 -6 -5 -5 ------- Run | Yrd Mat Min Mat Min Mat Fac Fac Fac Upp Slots Evolved 11 | . 1 . 2 . 2 2 2 2 . Power 1 | . . . . . 1 . . . . Propulsion 4 | . . . 1 . 1 1 1 . . Utility 5 | . 1 . 1 . . 1 1 1 . Weapon 1 | . . . . . . . . 1 . Parts Attached 42 | 7 2 . 9 1 5 4 3 9 2 Power 8 | 1 . . 3 . . 1 2 1 . Engine 6 | 1 . . 3 . . 1 1 . . Core 2 | . . . . . . . 1 1 . Reactor . | . . . . . . . . . . Propulsion 17 | 2 . . 2 1 4 . . 6 2 Treads . | . . . . . . . . . . Leg 5 | 2 . . 2 1 . . . . . Wheel . | . . . . . . . . . . Hover . | . . . . . . . . . . Flight 12 | . . . . . 4 . . 6 2 Utility 12 | 2 2 . 3 . . 2 1 2 . Device 6 | 2 . . 1 . . 1 1 1 . Storage 1 | . 1 . . . . . . . . Processor 3 | . 1 . 1 . . 1 . . . Hackware 1 | . . . . . . . . 1 . Protection 1 | . . . 1 . . . . . . Artifact . | . . . . . . . . . . Weapon 5 | 2 . . 1 . 1 1 . . . Energy Gun 2 | 1 . . 1 . . . . . . Energy Cannon 1 | . . . . . . 1 . . . Ballistic Gun 1 | 1 . . . . . . . . . Ballistic Cannon . | . . . . . . . . . . Launcher . | . . . . . . . . . . Special Weapon . | . . . . . . . . . . Impact Weapon . | . . . . . . . . . . Slashing Weapon . | . . . . . . . . . . Piercing Weapon . | . . . . . . . . . . Special Melee Weapon 1 | . . . . . 1 . . . . Unidentified Prototypes . | . . . . . . . . . . Corrupted Parts 1 | . . . . . . . . 1 . System Corruption 1 | . . . . . . . . 1 . Parts Lost 4 | . . . 1 . . . . . 3 Power . | . . . . . . . . . . Propulsion 2 | . . . . . . . . . 2 Utility 1 | . . . 1 . . . . . . Weapon 1 | . . . . . . . . . 1 Highest Loss Streak 3 | . . . 1 . . . . . 3 To Critical Strikes . | . . . . . . . . . . Average Slot Usage (%) 90 | . 100 100 91 100 81 80 68 82 87 Engine 8 | . 12 12 9 10 8 7 2 5 5 Leg 17 | . 25 25 27 30 . . . . . Flight 9 | . . . . . 32 28 25 30 32 Device 14 | . 23 12 11 10 8 13 12 14 16 Storage 7 | . 12 12 10 10 1 . . . . Processor 7 | . 1 12 10 10 8 10 6 5 5 Protection 5 | . . . 7 10 8 7 6 5 5 Energy Gun 6 | . 12 12 5 10 8 . . . . Energy Cannon 1 | . . . . . . 6 6 5 5 Ballistic Gun 7 | . 12 12 10 10 1 . . . . Special Melee Weapon 1 | . . . . . 5 7 6 5 4 Naked Turns . | . . . . . . . . . . Heaviest Build 30 | 9 19 18 22 22 11 19 20 30 30 Greatest Support 42 | 20 20 20 33 33 12 21 21 42 36 Greatest Overweight (x) 1 | . . . 1 . . . . . . Average Overweight (x) . | . . . . . . . . . . Largest Inventory Capacity 10 | 5 10 10 10 10 10 5 5 5 5 Average Capacity 8 | 5 10 10 10 10 5 5 5 5 5 Most Carried 10 | 5 8 10 10 10 10 5 5 5 4 Average Carried 7 | 2 6 9 9 10 5 4 4 4 3 Final Capacity 10 | 5 10 10 10 10 5 5 5 5 5 Final Carried 10 | 5 8 10 10 10 5 5 5 4 2 Class Distribution -------------------- 70% | Hacker-Mutant 26% | Hacker-Sprinter 3% | Hacker-Skirmisher Dominant Class ---------------- Hacker-Mutant | -10/Materials Hacker-Mutant | -10/Mines Hacker-Mutant | -9/Materials Hacker-Mutant | -9/Mines Hacker-Sprinter | -8/Materials Hacker-Sprinter | -7/Factory Hacker-Sprinter | -6/Factory Hacker-Sprinter | -5/Factory Hacker-Mutant | -5/Upper Caves Resources | -11 -10 -10 -9 -9 -8 -7 -6 -5 -5 ----------- Run | Yrd Mat Min Mat Min Mat Fac Fac Fac Upp Matter Collected 753 | 181 105 31 167 23 15 91 20 100 20 Remotely . | . . . . . . . . . . Salvage Created 998 | . 55 28 252 43 15 179 223 133 70 Parts 73 | . 6 5 22 6 3 6 14 10 1 Haulers Intercepted . | . . . . . . . . . . Recyclers Shooed . | . . . . . . . . . . Parts Field Recycled . | . . . . . . . . . . Retrieved Matter . | . . . . . . . . . . Parts Self-Destructed . | . . . . . . . . . . Prevented . | . . . . . . . . . . Kills | -11 -10 -10 -9 -9 -8 -7 -6 -5 -5 ------- Run | Yrd Mat Min Mat Min Mat Fac Fac Fac Upp Combat Hostiles Destroyed 23 | . 2 3 6 3 . 3 4 1 1 Guns 14 | . 2 3 6 3 . . . . . Cannons 5 | . . . . . . 1 2 1 1 AOE 2 | . . . . . . . 2 . . Classes Destroyed 7 | . 2 1 3 . 1 . . . . Operator 4 | . . . . . 1 . 1 2 . Watcher 4 | . 1 . 2 . . . . 1 . Swarmer 11 | . 2 2 2 3 . . 2 . . Grunt 6 | . . . 1 . . 3 . 1 1 Duelist 1 | . . . 1 . . . . . . Sentry 4 | . . . 2 . . . 2 . . Demolisher 1 | . . 1 . . . . . . . Best Kill Streak 3 | . 2 2 2 3 1 2 2 2 1 Combat Bots Only 3 | . 2 2 1 3 . 2 2 1 1 Max Kills in Single Turn 2 | . 1 2 1 2 1 1 2 1 1 Gunslinging 1 | . . 1 . 1 . . . . . Exploded 2 | . . . . . . . 2 . . Melee . | . . . . . . . . . . Uniques/NPCs Destroyed . | . . . . . . . . . . Combat | -11 -10 -10 -9 -9 -8 -7 -6 -5 -5 -------- Run | Yrd Mat Min Mat Min Mat Fac Fac Fac Upp Hostile Shots Fired 172 | . 8 10 59 10 2 12 41 4 26 Missed 72 | . 5 5 17 2 . 4 26 1 12 Damage Taken 1063 | . 19 119 315 34 19 169 120 37 231 Core 247 | . 5 51 29 . 9 76 37 13 27 Absorbed by Shields . | . . . . . . . . . . Redirected to Shielding 38 | . . . 1 1 . 8 2 . 26 Ignored by Resistances 663 | . 13 71 208 27 11 96 80 21 136 Core Remaining (%) 91 | 100 . 77 . 92 98 89 95 . . Volleys Fired 88 | . 5 4 35 2 8 9 9 10 6 Largest 2 | . 2 2 2 2 1 1 1 1 1 Hottest 70 | . 70 70 70 60 40 69 69 69 69 Shots Fired 117 | . 10 8 53 4 8 9 9 10 6 Gun 83 | . 10 8 53 4 8 . . . . Cannon 34 | . . . . . . 9 9 10 6 Launcher . | . . . . . . . . . . Special . | . . . . . . . . . . Kinetic 46 | . 5 4 35 2 . . . . . Thermal 37 | . 5 4 18 2 8 . . . . Explosive . | . . . . . . . . . . Electromagnetic 34 | . . . . . . 9 9 10 6 Robot Hit Streak 18 | . 3 5 18 5 10 9 17 3 8 Robot Miss Streak 1 | . 1 1 1 . 1 . 1 1 . Penetration Max . | . . . . . . . . . . Secondary Targets 2 | . . 1 . 1 . . . . . Max Gunslinging Chain 1 | . . 1 . 1 . . . . . Shots Hit Robots 97 | . 6 7 44 4 5 9 8 8 6 Core Hits 48 | . 3 5 14 3 3 2 10 5 3 Critical Kills 1 | . . . 1 . . . . . . Critical Parts Destroyed 1 | . . . 1 . . . . . . Critical Strikes 8 | . 1 1 4 . . 1 1 . . Burn 4 | . 1 1 2 . . . . . . Destroy 2 | . . . 2 . . . . . . Corrupt 2 | . . . . . . 1 1 . . Melee Attacks . | . . . . . . . . . . Impact . | . . . . . . . . . . Slashing . | . . . . . . . . . . Piercing . | . . . . . . . . . . Sneak Attacks . | . . . . . . . . . . Combat Hostiles . | . . . . . . . . . . Follow-up Attacks . | . . . . . . . . . . Damage Inflicted 2044 | . 75 93 547 48 55 269 321 300 336 Guns 818 | . 75 93 547 48 55 . . . . Cannons 949 | . . . . . . 269 223 280 177 Explosions 277 | . . . . . . . 98 20 159 Melee . | . . . . . . . . . . Ramming . | . . . . . . . . . . Kinetic 500 | . 26 56 393 25 . . . . . Thermal 497 | . 49 37 154 23 55 . . 20 159 Explosive . | . . . . . . . . . . Electromagnetic 1047 | . . . . . . 269 321 280 177 Impact . | . . . . . . . . . . Slashing . | . . . . . . . . . . Piercing . | . . . . . . . . . . Highest Corruption 1 | . . . . . . . . 1 . Average Corruption 1 | . . . . . . . . 1 . Corruption Purged 1 | . . . . . . . . 1 . Corruption Blocked . | . . . . . . . . . . Overload Shots . | . . . . . . . . . . Overflow Damage 40 | . . . . . . . 2 1 37 Projectiles 3 | . . . . . . . 2 1 . Explosions 37 | . . . . . . . . . 37 Melee . | . . . . . . . . . . Knockbacks . | . . . . . . . . . . Impact . | . . . . . . . . . . Kinetic . | . . . . . . . . . . Secondary . | . . . . . . . . . . Self-Inflicted Damage 85 | . . . . . . . 39 . 46 Shots 3 | . . . . . . . 2 . 1 Rammed . | . . . . . . . . . . Targets Rammed . | . . . . . . . . . . Kicked . | . . . . . . . . . . Crushed . | . . . . . . . . . . Highest Temperature 391 | . 18 27 36 . 11 112 66 391 221 Average Temperature 84 | . 7 12 19 . 5 56 30 136 118 Received Heat Transfer 375 | . 9 . 117 . 9 72 57 27 84 Siege Activations . | . . . . . . . . . . Robots Corrupted 2 | . . . . . . 2 . . . Combat Hostiles 2 | . . . . . . 2 . . . Parts Fried 8 | . . . . . . 1 3 4 . Impact Corruptions . | . . . . . . . . . . Robots Melted . | . . . . . . . . . . Combat Hostiles . | . . . . . . . . . . Parts Melted 2 | . . . 2 . . . . . . Heat Transferred 1351 | . 222 185 569 50 125 . . 50 150 Parts Sabotaged . | . . . . . . . . . . Parts Stolen . | . . . . . . . . . . Parts Stripped . | . . . . . . . . . . Power Chain Reactions 2 | . . . . . . . . 1 1 Alert | -11 -10 -10 -9 -9 -8 -7 -6 -5 -5 ------- Run | Yrd Mat Min Mat Min Mat Fac Fac Fac Upp Peak Influence 174 | . 75 80 153 104 46 124 174 120 . Initial 62 | . . . 22 34 28 9 44 62 . Average 48 | . 19 41 74 37 21 45 69 61 . Maximum Alert Level . | . . . . . . . . . . Low Security (%) 100 | 100 100 100 100 100 100 100 100 100 . Level 1 . | . . . . . . . . . . Level 2 . | . . . . . . . . . . Level 3 . | . . . . . . . . . . Level 4 . | . . . . . . . . . . Level 5 . | . . . . . . . . . . High Security . | . . . . . . . . . . Max Security . | . . . . . . . . . . Squads Dispatched 1 | . . . . . . . 1 . . Investigation . | . . . . . . . . . . Extermination . | . . . . . . . . . . Reinforcement 1 | . . . . . . . 1 . . Assault . | . . . . . . . . . . Garrison . | . . . . . . . . . . Intercept . | . . . . . . . . . . Searches Triggered . | . . . . . . . . . . Construction Impeded . | . . . . . . . . . . Haulers Reinforced . | . . . . . . . . . . Active Scanning Responses . | . . . . . . . . . . Cargo Convoy Interrupts . | . . . . . . . . . . Stealth | -11 -10 -10 -9 -9 -8 -7 -6 -5 -5 --------- Run | Yrd Mat Min Mat Min Mat Fac Fac Fac Upp Distress Signals 2 | . . . . . . . . 2 . Communications Jammed . | . . . . . . . . . . Distress Signals . | . . . . . . . . . . Times Spotted 54 | . 6 3 10 3 6 5 9 6 6 Peak Tracking Total 6 | . 3 2 3 3 6 3 2 2 6 Tactical Retreats 5 | . . . 1 . . 1 1 1 1 Traps | -11 -10 -10 -9 -9 -8 -7 -6 -5 -5 ------- Run | Yrd Mat Min Mat Min Mat Fac Fac Fac Upp Traps Triggered 2 | . . . . . . . 1 1 . Indirectly 1 | . . . . . . . 1 . . Trap Hack Attempts . | . . . . . . . . . . Triggered . | . . . . . . . . . . Disarmed . | . . . . . . . . . . Reprogrammed . | . . . . . . . . . . Reused . | . . . . . . . . . . Traps Extracted . | . . . . . . . . . . Installed . | . . . . . . . . . . Triggered . | . . . . . . . . . . Machines | -11 -10 -10 -9 -9 -8 -7 -6 -5 -5 ---------- Run | Yrd Mat Min Mat Min Mat Fac Fac Fac Upp Machines Disabled 5 | . . . . . . . 5 . . Max in Single Turn 4 | . . . . . . . 4 . . Machines Repaired . | . . . . . . . . . . Machines Dismantled . | . . . . . . . . . . Machines Sabotaged . | . . . . . . . . . . Overloaded Fab Kills . | . . . . . . . . . . Hacking | -11 -10 -10 -9 -9 -8 -7 -6 -5 -5 --------- Run | Yrd Mat Min Mat Min Mat Fac Fac Fac Upp Machines Accessed 18 | . 3 . 4 . 3 . 5 3 . Terminals 17 | . 3 . 4 . 3 . 4 3 . Fabricators 1 | . . . . . . . 1 . . Repair Stations . | . . . . . . . . . . Recycling Units . | . . . . . . . . . . Scanalyzers . | . . . . . . . . . . Garrison Access . | . . . . . . . . . . Total Hacks 46 | . 10 . 11 . 12 . 7 6 . Successful 20 | . 6 . 2 . 6 . 3 3 . Failed 26 | . 4 . 9 . 6 . 4 3 . Catastrophic 5 | . . . 2 . . . 2 1 . Database Lockouts . | . . . . . . . . . . Manual 33 | . 8 . 10 . 7 . 3 5 . Terminals 45 | . 10 . 11 . 12 . 6 6 . Fabricators 1 | . . . . . . . 1 . . Repair Stations . | . . . . . . . . . . Recycling Units . | . . . . . . . . . . Scanalyzers . | . . . . . . . . . . Garrison Access . | . . . . . . . . . . Terminal Hacks 19 | . 6 . 2 . 6 . 3 2 . Record 2 | . . . . . . . 1 1 . Part Schematic 5 | . 3 . . . 2 . . . . Robot Analysis 1 | . 1 . . . . . . . . Terminal Index 1 | . 1 . . . . . . . . Unreport Threat 4 | . 1 . . . 1 . 1 1 . Locate Traps 2 | . . . 1 . 1 . . . . Security Status 1 | . . . . . 1 . . . . Hauler Manifests 1 | . . . . . 1 . . . . Registered Components 1 | . . . . . . . 1 . . Zone Layout 1 | . . . 1 . . . . . . Fabricator Hacks . | . . . . . . . . . . Repair Station Hacks . | . . . . . . . . . . Recycling Unit Hacks . | . . . . . . . . . . Scanalyzer . | . . . . . . . . . . Garrison Access Hacks . | . . . . . . . . . . Unauthorized Hacks 1 | . . . . . . . . 1 . Terminals 1 | . . . . . . . . 1 . Assimilate 1 | . . . . . . . . 1 . Fabricators . | . . . . . . . . . . Repair Stations . | . . . . . . . . . . Recycling Units . | . . . . . . . . . . Scanalyzers . | . . . . . . . . . . Garrison Access . | . . . . . . . . . . Data Cores Recovered 3 | . . . . . 1 . . 2 . Used . | . . . . . . . . . . Hacking Detections 17 | . 2 . 4 . 3 . 5 3 . Full Trace Events . | . . . . . . . . . . Feedback Events . | . . . . . . . . . . Feedback Blocked . | . . . . . . . . . . Robot Schematics Acquired . | . . . . . . . . . . Robots Built . | . . . . . . . . . . Authchips . | . . . . . . . . . . Time . | . . . . . . . . . . Total Robot Build Rating . | . . . . . . . . . . Part Schematics Acquired 4 | . 3 . . . 1 . . . . Parts Built . | . . . . . . . . . . Authchips . | . . . . . . . . . . Time . | . . . . . . . . . . Total Part Build Rating . | . . . . . . . . . . Parts Repaired . | . . . . . . . . . . Time . | . . . . . . . . . . Parts Recycled . | . . . . . . . . . . Recycled Matter . | . . . . . . . . . . Retrieved Matter . | . . . . . . . . . . Retrieved Components . | . . . . . . . . . . Parts Scanalyzed . | . . . . . . . . . . Part Schematics Acquired . | . . . . . . . . . . Parts Damaged . | . . . . . . . . . . Bothacking | -11 -10 -10 -9 -9 -8 -7 -6 -5 -5 ------------ Run | Yrd Mat Min Mat Min Mat Fac Fac Fac Upp Used RIF Installer . | . . . . . . . . . . Robots Hacked . | . . . . . . . . . . Non-combat . | . . . . . . . . . . Combat . | . . . . . . . . . . Robot Hacks Applied . | . . . . . . . . . . Relay Couplers Released . | . . . . . . . . . . Fabnet Peak Effective % . | . . . . . . . . . . Robots Rewired . | . . . . . . . . . . Allies Hacked . | . . . . . . . . . . Hacks Repelled . | . . . . . . . . . . Allies | -11 -10 -10 -9 -9 -8 -7 -6 -5 -5 -------- Run | Yrd Mat Min Mat Min Mat Fac Fac Fac Upp Total Allies . | . . . . . . . . . . Largest Group . | . . . . . . . . . . Highest-Rated Group . | . . . . . . . . . . Highest-Rated Ally . | . . . . . . . . . . Total Orders . | . . . . . . . . . . Ally Attacks . | . . . . . . . . . . Total Damage . | . . . . . . . . . . Kills . | . . . . . . . . . . Allies Corrupted . | . . . . . . . . . . Allies Melted . | . . . . . . . . . . Intel | -11 -10 -10 -9 -9 -8 -7 -6 -5 -5 ------- Run | Yrd Mat Min Mat Min Mat Fac Fac Fac Upp Robot Analysis Total 1 | . 1 . . . . . . . . Derelict Logs Recovered 2 | . . 2 . . . . . . . Drone Launches . | . . . . . . . . . . Drone Recoveries . | . . . . . . . . . . Exploration | -11 -10 -10 -9 -9 -8 -7 -6 -5 -5 ------------- Run | Yrd Mat Min Mat Min Mat Fac Fac Fac Upp Turns Passed 2572 | 118 440 288 727 181 83 183 200 204 148 Spaces Moved 2901 | 91 349 228 460 136 212 259 500 278 388 Core 9 | 9 . . . . . . . . . Treads . | . . . . . . . . . . Legs 1255 | 82 349 228 460 136 . . . . . Wheels . | . . . . . . . . . . Hover . | . . . . . . . . . . Flight 1637 | . . . . . 212 259 500 278 388 Fastest Speed 22 | 50 120 120 120 120 26 26 26 22 23 Average Speed 67 | 113 120 120 120 120 26 26 26 25 33 Slowest Speed 190 | 120 120 120 190 120 26 26 26 30 34 Overloaded Moves . | . . . . . . . . . . Propulsion Burnouts . | . . . . . . . . . . Robots Hopped 12 | . . . . . 2 2 1 5 2 Cave-ins Triggered . | . . . . . . . . . . Exploration Rate (%) 26 | 5 49 64 32 34 18 4 11 6 41 Regions Visited 9 Branch Regions 3 Pre-discovered Areas 1 | . . 1 . . . . . . . Known Exits Taken 9 | 1 1 1 1 1 1 1 1 1 . Unknown Exits Taken . | . . . . . . . . . . Scrap Searched 3 | . . 2 . . . . . . 1 Spaces Dug . | . . . . . . . . . . Terrain Destroyed 23 | . . . . . . . 13 3 7 Melee . | . . . . . . . . . . Projectile . | . . . . . . . . . . AOE 23 | . . . . . . . 13 3 7 Terrain Rammed . | . . . . . . . . . . Walls Destroyed . | . . . . . . . . . . Machines Disabled . | . . . . . . . . . . Actions | -11 -10 -10 -9 -9 -8 -7 -6 -5 -5 --------- Run | Yrd Mat Min Mat Min Mat Fac Fac Fac Upp Total 3367 | 102 359 235 578 150 230 362 560 395 396 Wait 285 | . . . 61 11 . 89 43 79 2 Move 2869 | 90 348 227 459 135 207 255 497 267 384 Hop 11 | . . . . . 2 1 1 5 2 Pick Up 25 | 5 4 3 8 . 1 2 1 1 . Fast Attach 21 | 7 . . 3 . 1 2 2 6 . Attach 10 | . 1 . 3 . 1 1 . 2 2 Detach 5 | . . . . . . . 3 2 . Swap 11 | . 1 . 3 1 3 1 1 1 . Drop 24 | . . 1 6 1 7 2 3 4 . Fire 88 | . 5 4 35 2 8 9 9 10 6 Melee . | . . . . . . . . . . Ram . | . . . . . . . . . . Kick . | . . . . . . . . . . Crush . | . . . . . . . . . . Escape Stasis 18 | . . . . . . . . 18 . Rewire . | . . . . . . . . . . Trap . | . . . . . . . . . . Miscellaneous . | . . . . . . . . . . Route ------- -11/Scrapyard -10/Materials (discovered 2 exits: *Min x2) -10/Mines -9/Materials -9/Mines -8/Materials -7/Factory -6/Factory -5/Factory -5/Upper Caves History --------- Turn | Location | Event 4 | -11/Scrapyard | Identified exit to Materials 4 | -11/Scrapyard | Discovered exit to Materials (range 16) 119 | -11/Scrapyard | Entered Materials 119 | -10/Materials | Evolved 1 slot: Utility x1 145 | -10/Materials | Identified exit to Mines 145 | -10/Materials | Discovered exit to Mines (range 16) 311 | -10/Materials | Build established: Hacker-Mutant 496 | -10/Materials | Discovered exit to Mines (range 12) 559 | -10/Materials | Entered Mines 560 | -10/Mines | Assembled infested the area 579 | -10/Mines | Received a Rocket Launcher from a helpful Derelict 621 | -10/Mines | Learned location of Mines (-8) 831 | -10/Mines | Identified exit to Materials 831 | -10/Mines | Discovered exit to Materials (range 12) 837 | -10/Mines | Learned Materials stockpile data 847 | -10/Mines | Entered Materials 847 | -9/Materials | Evolved 2 slots: Propulsion x1, Utility x1 1255 | -9/Materials | Identified exit to Mines 1255 | -9/Materials | Discovered exit to Mines (range 7) 1574 | -9/Materials | Entered Mines 1578 | -9/Mines | Met a Derelict bent on vengeance 1733 | -9/Mines | Identified exit to Materials 1733 | -9/Mines | Discovered exit to Materials (range 13) 1755 | -9/Mines | Entered Materials 1755 | -8/Materials | Evolved 2 slots: Power x1, Propulsion x1 1835 | -8/Materials | Identified exit to Factory 1835 | -8/Materials | Discovered exit to Factory (range 11) 1838 | -8/Materials | Entered Factory 1838 | -7/Factory | Evolved 2 slots: Propulsion x1, Utility x1 1984 | -7/Factory | Identified exit to Factory 1984 | -7/Factory | Discovered exit to Factory (range 5) 2021 | -7/Factory | Entered another Factory area 2021 | -6/Factory | Evolved 2 slots: Propulsion x1, Utility x1 2054 | -6/Factory | Build established: Hacker-Sprinter 2218 | -6/Factory | Identified exit to Factory 2218 | -6/Factory | Discovered exit to Factory (range 10) 2221 | -6/Factory | Entered another Factory area 2221 | -5/Factory | Evolved 2 slots: Utility x1, Weapon x1 2367 | -5/Factory | Identified exit to Upper Caves 2367 | -5/Factory | Discovered exit to Upper Caves (range 10) 2425 | -5/Factory | Entered Upper Caves 2487 | -5/Upper Caves | Spotted B-75 Beast 2557 | -5/Upper Caves | Attracted the attention of an 0b10 checkpoint 2573 | -5/Upper Caves | Self-destructed Last Messages --------------- 02446_ Found Plasma Cannon. 02446_ Found Imp. Medium Treads. 02446_ Found Hpw. Shock Rifle. 02446_ Found 16 Matter. 02450_ VN-7IZ(r) collects Imp. Medium Treads. 02552_ S-27 Virus destroyed. 02557_ Y-64 Sentinel: "INTERCEPTING UNREGISTERED DERELICT." 02558_ Chain reaction triggered in Lgt. Angular Momentum Engine. 02558_ Destroyed Carbon-fiber Leg. 02558_ Nuclear Pulse Thruster destroyed. 02561_ Penetrated by Slug. 02561_ Datajack destroyed. 02562_ G-50 Soldier destroyed. 02563_ Field Propulsion Drive destroyed. 02564_ Penetrated by Slug. 02567_ Acquired 20 matter. 02572_ G-50 Soldier IFF system glitched. 02573_ Slug penetrates G-50 Soldier. Map ----- +----------------------------------------------------+ | | | | | | | | | | | ????????????????????????????????????????????????? | | ????????????????????????????????????????????????? | | ????????????????????????????????????????????????? | | ????????????????????????????????????????????????? | | ????????????????????????????????????????????????? | | ????????????????????????????????????????????????? | | ????????????????????????????????????????????????? | | ????????????????????????????????????????????????? | | ????????????????????????????????????????????????? | | ????????????????????????????????????????????????? | | ????????????????????????????????????????????????? | | ????????????????????????????????????????????????? | | ????????????????????????????????????????????????? | | ????????????????????????????????????????????????? | | ????????????????????????????????????????????????? | | ###????????????????#####????????????????????????? | | ####??????????#### ##########???????????????? | | ?????????# # #???????????????? | | ????????## # #???????????????? | | ??????????????## ### #???????????????? | | ????????????### """#@ ##??????????????? | | ???????????## ""%g g #??????????????? | | ???? ##### #" Y ##??????????????? | | ????# ! # ; #???????????????? | | ?????# !%! ## ##???????????????? | | ?????# #### ##%! ###### ##????????????????? | | ########### ### ##???##?????????????????? | | ### #??????????????????????? | | ## ## #??????????????????????? | | ###### ###### ! ### #??????????????????????? | | ##????# #????##% ## ##??????????????????????? | | #?????# #????## ## #???????????????????????? | | #?????# #???## ##???????????????????????? | | ??????# #???# #????????????????????????? | | ??????# ##### % ##???????????????????????? | | ??????# ##??????????????????????? | | ??????#### ### ## #??????????????????????? | | ?????????# #?##### #??????????????????????? | | ?????????# #????# ##??##??????????????????? | | ?????????# #???## ####??# ##?????????????????? | | ?????????# ??? ### #?#### ##????????????????? | | ??????######??? #?# #?# # ##???????????????? | | ?????## #####?? #?# ### #???????????????? | | ?????# ## ### #?# ## # # #????????????????? | | ??????# #### #????????????????? | +----------------------------------------------------+ Best States ------------- Heat Dissipation 40 Energy Generation 31 Energy Capacity 485 Matter Stores 300 Matter Capacity 300 Sight Range 16 Robot Scan Range 14 Terrain Scan Range 14 Terrain Scan Density 10 Additional Mass Support 9 Resistance: KI 35 Resistance: TH 35 Resistance: EX 35 Resistance: EM 35 Resistance: I 35 Resistance: S 35 Resistance: P 35 Power Shielding 33 Evasion (%) 65 Targeting Accuracy 5 Offensive Hacking 30 Item Schematics ----------------- Flight Unit | -10/Materials | Hacked Datajack | -10/Materials | Hacked Transport Network Coupler | -10/Materials | Hacked ECM Suite | -8/Materials | Hacked Robot Schematics ------------------ None Fabricated ------------ Nothing Alien Tech Used ----------------- None Achievements -------------- True Hacker Challenges ------------ None Game ------ Seed ConstructArcSpecial Manual? 0 Play Time 00:51:42 Cumulative 16.7 hours Start 2024.04.07 @ 13:08:59 End 2024.04.07 @ 19:42:16 Sessions 3 Manual Loads 0 Difficulty Explorer Special Mode None Game No. 31 Rogue 0 Adventurer 0 Explorer 31 Win Type - Total 0 Types 0/0/0/0/0/0/0/0/0 Lore% 24 Gallery% 20 Achievement% 19 Wizard Run 0 Options --------- Layout 1 ASCII 0 Keyboard 1 Movement Arrows Keybinds 0 Fullscreen 1 Font 24/Smallcaps Map View 50x35 Zoom Use 0% Tactical HUD 1 Map Filters NONE Filters NONE Steam 1 RUN: bcc19214-cf33-4497-a8f4-e7db4ee02dee